[Event "*** Titled Tuesday Blitz"]
[Site "Chess.com"]
[Date "2021.02.09"]
[Round "11"]
[White "PavelShkapenko"]
[Black "TomasKapitanchuk"]
[Result "0-1"]
[WhiteElo "2665"]
[BlackElo "2525"]
[TimeControl "180+1"]
[EndTime "12:07:43 PST"]
[Termination "TomasKapitanchuk won by resignation"]

1. e4 {[%clk 0:02:57.6]} 1... c5 {[%clk 0:03:00.4]} 2. c3 {[%clk 0:02:57.5]}
2... Nf6 {[%clk 0:03:00.2]} 3. e5 {[%clk 0:02:57.7]} 3... Nd5 {[%clk 0:03:00.8]}
4. d4 {[%clk 0:02:58.3]} 4... cxd4 {[%clk 0:03:01.3]} 5. cxd4 {[%clk 0:02:59]}
5... Nc6 {[%clk 0:02:59]} 6. Nc3 {[%clk 0:02:57.2]} 6... Nxc3 {[%clk 0:02:58.8]}
7. bxc3 {[%clk 0:02:57.6]} 7... d6 {[%clk 0:02:59.7]} 8. Nf3 {[%clk 0:02:57]}
8... dxe5 {[%clk 0:02:59.7]} 9. d5 {[%clk 0:02:55.7]} 9... e4 {[%clk 0:02:57.7]}
10. Ng5 {[%clk 0:02:53.9]} 10... Ne5 {[%clk 0:02:56.2]} 11. Nxe4 {[%clk
0:02:49.2]} 11... Bd7 {[%clk 0:02:51.3]} 12. Qd4 {[%clk 0:02:44.8]} 12... Ng6
{[%clk 0:02:45.4]} 13. Bc4 {[%clk 0:02:40.4]} 13... Rc8 {[%clk 0:02:38.1]} 14.
O-O {[%clk 0:02:28.8]} 14... Qc7 {[%clk 0:02:32.6]} 15. Re1 {[%clk 0:02:18.6]}
15... f5 {[%clk 0:01:43.7]} 16. Nd2 {[%clk 0:02:17.8]} 16... Qc5 {[%clk
0:01:38]} 17. Qxc5 {[%clk 0:01:54.2]} 17... Rxc5 {[%clk 0:01:31.4]} 18. Ba3
{[%clk 0:01:55.1]} 18... Rc8 {[%clk 0:01:30.7]} 19. Be2 {[%clk 0:01:36.2]} 19...
Kf7 {[%clk 0:01:26.2]} 20. Bh5 {[%clk 0:01:25.5]} 20... e6 {[%clk 0:01:23.8]}
21. Bxf8 {[%clk 0:01:21.3]} 21... Rhxf8 {[%clk 0:01:23]} 22. dxe6+ {[%clk
0:01:17.4]} 22... Bxe6 {[%clk 0:01:22.7]} 23. Nf3 {[%clk 0:01:16.9]} 23... Kf6
{[%clk 0:01:18.6]} 24. Nd4 {[%clk 0:01:14.6]} 24... Bd7 {[%clk 0:01:16.2]} 25.
Bxg6 {[%clk 0:01:13.9]} 25... hxg6 {[%clk 0:01:15.5]} 26. Re3 {[%clk 0:01:13.7]}
26... Rfe8 {[%clk 0:01:13.6]} 27. Rae1 {[%clk 0:01:12.7]} 27... Rxc3 {[%clk
0:01:06.4]} 28. Rxe8 {[%clk 0:01:09.4]} 28... Bxe8 {[%clk 0:01:07.3]} 29. h4
{[%clk 0:01:04.7]} 29... Bc6 {[%clk 0:01:04.1]} 30. Re6+ {[%clk 0:00:46.7]}
30... Kf7 {[%clk 0:01:04]} 31. Re2 {[%clk 0:00:47.3]} 31... Rc4 {[%clk
0:01:01.3]} 32. Rd2 {[%clk 0:00:39.9]} 32... a6 {[%clk 0:00:51.7]} 33. f3 {[%clk
0:00:40]} 33... Bd5 {[%clk 0:00:50.3]} 34. Nxf5 {[%clk 0:00:37.1]} 34... gxf5
{[%clk 0:00:47.2]} 35. Rxd5 {[%clk 0:00:36.9]} 35... Ke6 {[%clk 0:00:47.2]} 36.
Rd2 {[%clk 0:00:34.3]} 36... Rxh4 {[%clk 0:00:47.4]} 37. Rc2 {[%clk 0:00:34.3]}
37... Kd6 {[%clk 0:00:45.5]} 38. Rd2+ {[%clk 0:00:34.1]} 38... Kc6 {[%clk
0:00:43.5]} 39. Re2 {[%clk 0:00:33.4]} 39... Rd4 {[%clk 0:00:42]} 40. Kf2 {[%clk
0:00:32.5]} 40... Rd7 {[%clk 0:00:38.8]} 41. Kg3 {[%clk 0:00:31.7]} 41... g5
{[%clk 0:00:35.5]} 42. Re5 {[%clk 0:00:31.7]} 42... Rd5 {[%clk 0:00:35.4]} 43.
Re2 {[%clk 0:00:28.3]} 43... b5 {[%clk 0:00:34.8]} 44. Rf2 {[%clk 0:00:27.4]}
44... b4 {[%clk 0:00:33.2]} 45. f4 {[%clk 0:00:27.8]} 45... Rd3+ {[%clk
0:00:30.9]} 46. Kh2 {[%clk 0:00:27.8]} 46... g4 {[%clk 0:00:30.4]} 47. Re2
{[%clk 0:00:27.8]} 47... a5 {[%clk 0:00:28.6]} 48. Re5 {[%clk 0:00:27.6]} 48...
Rd5 {[%clk 0:00:29]} 49. Re6+ {[%clk 0:00:26.8]} 49... Kc5 {[%clk 0:00:28.2]}
50. Kg3 {[%clk 0:00:27.3]} 50... a4 {[%clk 0:00:27.2]} 51. Re2 {[%clk 0:00:25]}
51... b3 {[%clk 0:00:27.3]} 0-1

[Event "*** Titled Tuesday Blitz"]
[Site "Chess.com"]
[Date "2021.02.09"]
[Round "11"]
[White "Aygehovit1992"]
[Black "jens1102"]
[Result "1/2-1/2"]
[WhiteElo "2610"]
[BlackElo "2473"]
[TimeControl "180+1"]
[EndTime "12:07:44 PST"]
[Termination "Game drawn by repetition"]

1. d4 {[%clk 0:03:00.9]} 1... Nf6 {[%clk 0:02:58.8]} 2. Nf3 {[%clk 0:03:01.8]}
2... e6 {[%clk 0:02:59.7]} 3. Bg5 {[%clk 0:02:56.3]} 3... d5 {[%clk 0:02:58.6]}
4. Nbd2 {[%clk 0:02:56]} 4... c6 {[%clk 0:02:58.8]} 5. e3 {[%clk 0:02:56.2]}
5... Nbd7 {[%clk 0:02:59.2]} 6. Bd3 {[%clk 0:02:56]} 6... Be7 {[%clk 0:02:59.3]}
7. c3 {[%clk 0:02:56.1]} 7... O-O {[%clk 0:02:58]} 8. h4 {[%clk 0:02:56.1]} 8...
c5 {[%clk 0:02:50.1]} 9. h5 {[%clk 0:02:55.7]} 9... h6 {[%clk 0:02:49.2]} 10.
Bf4 {[%clk 0:02:53.8]} 10... b6 {[%clk 0:02:45.8]} 11. Ne5 {[%clk 0:02:52.4]}
11... Bb7 {[%clk 0:02:44.9]} 12. g4 {[%clk 0:02:52.1]} 12... Ne4 {[%clk
0:02:42.2]} 13. Nxe4 {[%clk 0:02:37.3]} 13... dxe4 {[%clk 0:02:43.1]} 14. Bc4
{[%clk 0:02:37.3]} 14... Nxe5 {[%clk 0:02:40.2]} 15. dxe5 {[%clk 0:02:36.4]}
15... Qxd1+ {[%clk 0:02:32]} 16. Rxd1 {[%clk 0:02:37.3]} 16... Rfd8 {[%clk
0:02:31.5]} 17. Ke2 {[%clk 0:02:37.1]} 17... Rxd1 {[%clk 0:02:27.2]} 18. Rxd1
{[%clk 0:02:38]} 18... Rd8 {[%clk 0:02:27.8]} 19. Rg1 {[%clk 0:02:35.3]} 19...
Bg5 {[%clk 0:02:25.8]} 20. Bxg5 {[%clk 0:02:33.8]} 20... hxg5 {[%clk 0:02:26.7]}
21. a4 {[%clk 0:02:34]} 21... Bc6 {[%clk 0:02:24.1]} 22. Bb5 {[%clk 0:02:29.3]}
22... Bb7 {[%clk 0:02:19.2]} 23. Ra1 {[%clk 0:02:20.3]} 23... a6 {[%clk
0:02:16.1]} 24. Bc4 {[%clk 0:02:20.3]} 24... Rd7 {[%clk 0:02:07.4]} 25. b3
{[%clk 0:02:15.5]} 25... Rd8 {[%clk 0:02:06.2]} 26. Rb1 {[%clk 0:02:13.8]} 26...
a5 {[%clk 0:01:35.8]} 27. Ke1 {[%clk 0:01:57]} 27... Bc6 {[%clk 0:01:33.8]} 28.
Rd1 {[%clk 0:01:42.5]} 28... Rxd1+ {[%clk 0:01:32.9]} 29. Kxd1 {[%clk
0:01:43.4]} 29... Bd5 {[%clk 0:01:23.9]} 30. Ke2 {[%clk 0:00:56.1]} 30... Kf8
{[%clk 0:01:23]} 31. Bxd5 {[%clk 0:00:34.8]} 31... exd5 {[%clk 0:01:22.4]} 32.
c4 {[%clk 0:00:35.4]} 32... d4 {[%clk 0:00:54.3]} 33. f4 {[%clk 0:00:10.8]}
33... exf3+ {[%clk 0:00:11.2]} 34. Kxf3 {[%clk 0:00:10.5]} 34... dxe3 {[%clk
0:00:10]} 35. Kxe3 {[%clk 0:00:07.8]} 35... Ke7 {[%clk 0:00:10.4]} 36. Kd3
{[%clk 0:00:07.7]} 36... Kd7 {[%clk 0:00:07.1]} 37. Ke3 {[%clk 0:00:07.9]} 37...
Ke7 {[%clk 0:00:07.2]} 38. Kf3 {[%clk 0:00:08.4]} 38... Kd7 {[%clk 0:00:07.3]}
39. Ke3 {[%clk 0:00:08.3]} 39... Ke7 {[%clk 0:00:06]} 1/2-1/2

[Event "*** Titled Tuesday Blitz"]
[Site "Chess.com"]
[Date "2021.02.09"]
[Round "11"]
[White "TimofeevAr"]
[Black "youngKID"]
[Result "1-0"]
[WhiteElo "2888"]
[BlackElo "2846"]
[TimeControl "180+1"]
[EndTime "12:07:45 PST"]
[Termination "TimofeevAr won by resignation"]

1. c4 {[%clk 0:03:00.9]} 1... Nf6 {[%clk 0:02:59.7]} 2. Nc3 {[%clk 0:02:59.7]}
2... e5 {[%clk 0:02:59]} 3. e3 {[%clk 0:02:59.1]} 3... g6 {[%clk 0:02:57.9]} 4.
Nf3 {[%clk 0:02:57.9]} 4... Nc6 {[%clk 0:02:52.5]} 5. d3 {[%clk 0:02:57.9]} 5...
Bg7 {[%clk 0:02:52.1]} 6. Be2 {[%clk 0:02:58.2]} 6... O-O {[%clk 0:02:52.3]} 7.
O-O {[%clk 0:02:58.3]} 7... d6 {[%clk 0:02:43.4]} 8. Rb1 {[%clk 0:02:56.4]} 8...
a5 {[%clk 0:02:43.7]} 9. b3 {[%clk 0:02:56.3]} 9... Re8 {[%clk 0:02:38]} 10. Bb2
{[%clk 0:02:55.9]} 10... h6 {[%clk 0:02:36.7]} 11. Nd2 {[%clk 0:02:54]} 11... d5
{[%clk 0:02:19.6]} 12. cxd5 {[%clk 0:02:52.6]} 12... Nxd5 {[%clk 0:02:20.5]} 13.
a3 {[%clk 0:02:52.8]} 13... Be6 {[%clk 0:02:08.8]} 14. Rc1 {[%clk 0:02:50.9]}
14... Nxc3 {[%clk 0:02:04.7]} 15. Bxc3 {[%clk 0:02:49.7]} 15... Qe7 {[%clk
0:01:29.5]} 16. Bb2 {[%clk 0:02:45.7]} 16... Red8 {[%clk 0:01:21.6]} 17. Qc2
{[%clk 0:02:44.6]} 17... Bd5 {[%clk 0:01:13.3]} 18. Ne4 {[%clk 0:02:38.6]} 18...
f5 {[%clk 0:00:39.1]} 19. Nc3 {[%clk 0:02:38.2]} 19... Bf7 {[%clk 0:00:35.3]}
20. Bf3 {[%clk 0:02:38.3]} 20... Rd7 {[%clk 0:00:24.3]} 21. Na4 {[%clk
0:02:34.4]} 21... e4 {[%clk 0:00:14.6]} 22. dxe4 {[%clk 0:02:33.9]} 22... Bxb2
{[%clk 0:00:14.2]} 23. Nxb2 {[%clk 0:02:29.9]} 23... Ne5 {[%clk 0:00:11.5]} 24.
Be2 {[%clk 0:02:30]} 24... Rad8 {[%clk 0:00:09]} 25. Nc4 {[%clk 0:02:11.3]}
25... Nxc4 {[%clk 0:00:05.3]} 26. Bxc4 {[%clk 0:02:11.5]} 26... Qxe4 {[%clk
0:00:05.6]} 27. Bxf7+ {[%clk 0:02:10.4]} 27... Kxf7 {[%clk 0:00:06.5]} 28. Qc3
{[%clk 0:02:10.5]} 28... b6 {[%clk 0:00:06.3]} 29. b4 {[%clk 0:02:09.3]} 29...
axb4 {[%clk 0:00:06]} 30. axb4 {[%clk 0:02:09.4]} 30... Qe6 {[%clk 0:00:06.1]}
31. h4 {[%clk 0:02:08.1]} 31... g5 {[%clk 0:00:05.6]} 32. h5 {[%clk 0:02:07.4]}
32... Qf6 {[%clk 0:00:04.8]} 33. Qc4+ {[%clk 0:02:07.1]} 33... Kg7 {[%clk
0:00:05.3]} 34. Ra1 {[%clk 0:02:04.3]} 34... Re7 {[%clk 0:00:04.1]} 35. Ra7
{[%clk 0:02:02.6]} 35... Rdd7 {[%clk 0:00:03.9]} 36. Ra8 {[%clk 0:02:02.2]}
36... Qe6 {[%clk 0:00:04.3]} 37. Qc3+ {[%clk 0:02:01.8]} 37... Qe5 {[%clk
0:00:04.8]} 38. Qb3 {[%clk 0:02:01.5]} 38... Qe6 {[%clk 0:00:05.1]} 39. Qc3+
{[%clk 0:02:00]} 39... Qe5 {[%clk 0:00:05.5]} 40. Qc6 {[%clk 0:02:00.3]} 40...
Qe6 {[%clk 0:00:05.1]} 41. Qb7 {[%clk 0:02:00.7]} 41... Kf6 {[%clk 0:00:02.1]}
42. Qc8 {[%clk 0:01:57.5]} 42... Qf7 {[%clk 0:00:02.3]} 43. Rc1 {[%clk
0:01:53.2]} 43... Qg7 {[%clk 0:00:01.8]} 44. Rc6+ {[%clk 0:01:49.9]} 44... Re6
{[%clk 0:00:02.3]} 45. Qf8+ {[%clk 0:01:17.7]} 45... Qxf8 {[%clk 0:00:02]} 46.
Rxf8+ {[%clk 0:01:17.4]} 46... Rf7 {[%clk 0:00:01.6]} 47. Rxf7+ {[%clk
0:01:14.5]} 47... Kxf7 {[%clk 0:00:02.5]} 48. Rxc7+ {[%clk 0:01:15]} 48... Kf6
{[%clk 0:00:03]} 49. b5 {[%clk 0:01:14.8]} 49... Ke5 {[%clk 0:00:02.9]} 50. f3
{[%clk 0:01:11.7]} 50... Kd5 {[%clk 0:00:02.6]} 51. Kf2 {[%clk 0:01:11.4]} 51...
Rd6 {[%clk 0:00:02.3]} 52. Ke2 {[%clk 0:01:11.2]} 52... Ke5 {[%clk 0:00:02.5]}
53. Rg7 {[%clk 0:01:07.2]} 53... Kd5 {[%clk 0:00:01.8]} 54. g4 {[%clk
0:01:00.9]} 54... fxg4 {[%clk 0:00:01.6]} 55. fxg4 {[%clk 0:01:01.4]} 55... Kc5
{[%clk 0:00:01.9]} 56. Rg6 {[%clk 0:01:01.7]} 56... Rd5 {[%clk 0:00:01.9]} 57.
Rxh6 {[%clk 0:01:01.5]} 57... Kxb5 {[%clk 0:00:02.6]} 58. Rg6 {[%clk 0:01:00]}
1-0

[Event "*** Titled Tuesday Blitz"]
[Site "Chess.com"]
[Date "2021.02.09"]
[Round "11"]
[White "ajedrez1101"]
[Black "Michaelson_11"]
[Result "0-1"]
[WhiteElo "2100"]
[BlackElo "2278"]
[TimeControl "180+1"]
[EndTime "12:07:47 PST"]
[Termination "Michaelson_11 won on time"]

1. b3 {[%clk 0:03:00.9]} 1... Nf6 {[%clk 0:02:57.7]} 2. Bb2 {[%clk 0:03:01]}
2... g6 {[%clk 0:02:58.6]} 3. Bxf6 {[%clk 0:03:00.8]} 3... exf6 {[%clk
0:02:59.5]} 4. c4 {[%clk 0:03:01.3]} 4... d5 {[%clk 0:02:46.7]} 5. cxd5 {[%clk
0:03:00.8]} 5... Qxd5 {[%clk 0:02:45.9]} 6. Nc3 {[%clk 0:03:01.5]} 6... Qd8
{[%clk 0:02:42.8]} 7. g3 {[%clk 0:02:49.8]} 7... Bg7 {[%clk 0:02:34.4]} 8. Bg2
{[%clk 0:02:50.3]} 8... O-O {[%clk 0:02:32.3]} 9. Nf3 {[%clk 0:02:40.1]} 9... c6
{[%clk 0:02:31]} 10. O-O {[%clk 0:02:40.4]} 10... Na6 {[%clk 0:02:27.9]} 11. a3
{[%clk 0:02:34.4]} 11... Nc7 {[%clk 0:02:18.7]} 12. b4 {[%clk 0:02:16.9]} 12...
f5 {[%clk 0:02:10.7]} 13. Qc2 {[%clk 0:02:12.6]} 13... Be6 {[%clk 0:01:58.6]}
14. Rab1 {[%clk 0:01:52.4]} 14... Qf6 {[%clk 0:01:56.3]} 15. Na4 {[%clk
0:01:47.4]} 15... Bd5 {[%clk 0:01:38.8]} 16. Nc5 {[%clk 0:01:40.4]} 16... Rfe8
{[%clk 0:01:33.9]} 17. e3 {[%clk 0:01:33.8]} 17... b6 {[%clk 0:01:28.6]} 18. Nb3
{[%clk 0:01:26.9]} 18... Rad8 {[%clk 0:01:22.5]} 19. d4 {[%clk 0:01:26.1]} 19...
Be4 {[%clk 0:01:20]} 20. Qc4 {[%clk 0:01:04.1]} 20... g5 {[%clk 0:00:42.9]} 21.
Rbc1 {[%clk 0:00:58.6]} 21... Qg6 {[%clk 0:00:41.5]} 22. Nfd2 {[%clk 0:00:37.4]}
22... Bxg2 {[%clk 0:00:29.2]} 23. Kxg2 {[%clk 0:00:37.1]} 23... Rd6 {[%clk
0:00:24.5]} 24. Qd3 {[%clk 0:00:23.8]} 24... Nd5 {[%clk 0:00:15]} 25. Nc4 {[%clk
0:00:20.2]} 25... Rde6 {[%clk 0:00:13.7]} 26. Nbd2 {[%clk 0:00:17.7]} 26... Qf6
{[%clk 0:00:12.7]} 27. Nf3 {[%clk 0:00:14.1]} 27... f4 {[%clk 0:00:10.9]} 28.
Nfe5 {[%clk 0:00:10.3]} 28... h6 {[%clk 0:00:06]} 29. Nd2 {[%clk 0:00:06.8]}
29... Qe7 {[%clk 0:00:05.8]} 30. exf4 {[%clk 0:00:03.2]} 30... gxf4 {[%clk
0:00:05.4]} 31. Ndf3 {[%clk 0:00:03.8]} 31... Qc7 {[%clk 0:00:05.3]} 32. Rc2
{[%clk 0:00:03.2]} 32... Qb7 {[%clk 0:00:05.4]} 33. Rfc1 {[%clk 0:00:02.8]}
33... fxg3 {[%clk 0:00:05.6]} 34. hxg3 {[%clk 0:00:02.9]} 34... Bxe5 {[%clk
0:00:05.7]} 35. Nxe5 {[%clk 0:00:03.2]} 35... c5 {[%clk 0:00:06]} 36. bxc5
{[%clk 0:00:03.1]} 36... Nf4+ {[%clk 0:00:06.1]} 0-1

[Event "*** Titled Tuesday Blitz"]
[Site "Chess.com"]
[Date "2021.02.09"]
[Round "11"]
[White "EugeneRougon"]
[Black "Skat2704"]
[Result "1/2-1/2"]
[WhiteElo "2708"]
[BlackElo "2551"]
[TimeControl "180+1"]
[EndTime "12:07:49 PST"]
[Termination "Game drawn by repetition"]

1. e4 {[%clk 0:03:00.9]} 1... c5 {[%clk 0:02:59.4]} 2. Nf3 {[%clk 0:02:56.3]}
2... Nc6 {[%clk 0:02:58.9]} 3. Bb5 {[%clk 0:02:55.2]} 3... e6 {[%clk 0:02:58.6]}
4. O-O {[%clk 0:02:48.2]} 4... Nge7 {[%clk 0:02:56.8]} 5. d4 {[%clk 0:02:48.1]}
5... cxd4 {[%clk 0:02:55.5]} 6. Nxd4 {[%clk 0:02:49]} 6... a6 {[%clk 0:02:56.1]}
7. Be2 {[%clk 0:02:47.9]} 7... Nxd4 {[%clk 0:02:54.8]} 8. Qxd4 {[%clk
0:02:48.8]} 8... Nc6 {[%clk 0:02:55.2]} 9. Qc3 {[%clk 0:02:49.4]} 9... Qf6
{[%clk 0:02:50.7]} 10. Qxf6 {[%clk 0:02:48.6]} 10... gxf6 {[%clk 0:02:50.3]} 11.
Be3 {[%clk 0:02:46.2]} 11... b5 {[%clk 0:02:45.4]} 12. Nd2 {[%clk 0:02:41.3]}
12... Bb7 {[%clk 0:02:44.9]} 13. a4 {[%clk 0:02:40]} 13... b4 {[%clk 0:02:41.9]}
14. Nc4 {[%clk 0:02:40.1]} 14... Rg8 {[%clk 0:02:31]} 15. f3 {[%clk 0:02:38.7]}
15... Be7 {[%clk 0:02:21.5]} 16. Rfd1 {[%clk 0:02:34.7]} 16... Ne5 {[%clk
0:02:18.2]} 17. Nd6+ {[%clk 0:02:31.4]} 17... Bxd6 {[%clk 0:02:13]} 18. Rxd6
{[%clk 0:02:32.3]} 18... Bc6 {[%clk 0:02:07.2]} 19. a5 {[%clk 0:02:19.1]} 19...
Bb5 {[%clk 0:01:44.7]} 20. Bxb5 {[%clk 0:01:51.4]} 20... axb5 {[%clk 0:01:44.1]}
21. Kf2 {[%clk 0:00:56.4]} 21... Nc4 {[%clk 0:01:41.8]} 22. Rd3 {[%clk
0:00:56.1]} 22... Rxa5 {[%clk 0:01:23.8]} 23. Rxa5 {[%clk 0:00:52.6]} 23... Nxa5
{[%clk 0:01:24]} 24. b3 {[%clk 0:00:49.5]} 24... Nc6 {[%clk 0:01:16.1]} 25. Rd1
{[%clk 0:00:49.5]} 25... Kd8 {[%clk 0:01:08.4]} 26. h4 {[%clk 0:00:41.6]} 26...
Kc7 {[%clk 0:01:07.7]} 27. h5 {[%clk 0:00:41.7]} 27... d6 {[%clk 0:01:02.6]} 28.
Bf4 {[%clk 0:00:37.5]} 28... Ne5 {[%clk 0:01:00]} 29. Rd4 {[%clk 0:00:31.9]}
29... Rc8 {[%clk 0:00:59]} 30. Rxb4 {[%clk 0:00:27.3]} 30... Kb6 {[%clk
0:00:43.5]} 31. Be3+ {[%clk 0:00:19.6]} 31... Ka6 {[%clk 0:00:43]} 32. Rd4
{[%clk 0:00:16.6]} 32... Rxc2+ {[%clk 0:00:42.2]} 33. Kg3 {[%clk 0:00:15.8]}
33... Rc6 {[%clk 0:00:41]} 34. Bh6 {[%clk 0:00:14.8]} 34... Nd7 {[%clk
0:00:39.8]} 35. Bg7 {[%clk 0:00:13.5]} 35... Kb7 {[%clk 0:00:39.5]} 36. f4
{[%clk 0:00:11.4]} 36... Rc3+ {[%clk 0:00:38.9]} 37. Kh4 {[%clk 0:00:11.4]}
37... Rxb3 {[%clk 0:00:38.7]} 38. Rxd6 {[%clk 0:00:11.2]} 38... Kc7 {[%clk
0:00:39.1]} 39. Rd1 {[%clk 0:00:10.6]} 39... b4 {[%clk 0:00:38.8]} 40. g4 {[%clk
0:00:09.8]} 40... Re3 {[%clk 0:00:35.3]} 41. Rd4 {[%clk 0:00:10]} 41... b3
{[%clk 0:00:34.6]} 42. Rb4 {[%clk 0:00:10]} 42... Kc6 {[%clk 0:00:32.2]} 43. g5
{[%clk 0:00:08.9]} 43... fxg5+ {[%clk 0:00:31.3]} 44. Kxg5 {[%clk 0:00:09.8]}
44... Kc5 {[%clk 0:00:30.2]} 45. Rb7 {[%clk 0:00:09.8]} 45... Kc6 {[%clk
0:00:30.3]} 46. Rb4 {[%clk 0:00:09.6]} 46... Kc5 {[%clk 0:00:30.5]} 47. Rb7
{[%clk 0:00:09.8]} 47... Kc6 {[%clk 0:00:30.8]} 48. Rb4 {[%clk 0:00:09.8]}
1/2-1/2

[Event "*** Titled Tuesday Blitz"]
[Site "Chess.com"]
[Date "2021.02.09"]
[Round "11"]
[White "Kapibara_Warri0r"]
[Black "A-S-00"]
[Result "0-1"]
[WhiteElo "2182"]
[BlackElo "2285"]
[TimeControl "180+1"]
[EndTime "12:07:49 PST"]
[Termination "A-S-00 won by resignation"]

1. d4 {[%clk 0:03:00.9]} 1... Nf6 {[%clk 0:02:59.5]} 2. Nf3 {[%clk 0:02:58.5]}
2... g6 {[%clk 0:02:59.6]} 3. c3 {[%clk 0:02:57.6]} 3... Bg7 {[%clk 0:02:58.3]}
4. Bf4 {[%clk 0:02:58]} 4... d6 {[%clk 0:02:57.4]} 5. h3 {[%clk 0:02:57]} 5...
O-O {[%clk 0:02:56.9]} 6. e3 {[%clk 0:02:54.4]} 6... Nbd7 {[%clk 0:02:57.8]} 7.
Bh2 {[%clk 0:02:51]} 7... c5 {[%clk 0:02:57.1]} 8. Bd3 {[%clk 0:02:47.3]} 8...
b6 {[%clk 0:02:54.2]} 9. O-O {[%clk 0:02:44.2]} 9... Bb7 {[%clk 0:02:53.1]} 10.
Nbd2 {[%clk 0:02:44.8]} 10... Rc8 {[%clk 0:02:50.2]} 11. b4 {[%clk 0:02:38.5]}
11... Qc7 {[%clk 0:02:43.7]} 12. a4 {[%clk 0:02:31.7]} 12... Qb8 {[%clk
0:02:40.6]} 13. a5 {[%clk 0:02:27.4]} 13... cxd4 {[%clk 0:02:17.7]} 14. cxd4
{[%clk 0:02:25.4]} 14... Nd5 {[%clk 0:02:09.8]} 15. Qa4 {[%clk 0:02:07]} 15...
Bc6 {[%clk 0:01:52.3]} 16. b5 {[%clk 0:02:05.7]} 16... Nc3 {[%clk 0:01:36.1]}
17. Qb4 {[%clk 0:01:58]} 17... bxa5 {[%clk 0:01:29.8]} 18. Qxa5 {[%clk
0:01:49.7]} 18... Bxb5 {[%clk 0:01:17.3]} 19. Bxb5 {[%clk 0:01:48.1]} 19... Qxb5
{[%clk 0:01:16.5]} 20. Qxa7 {[%clk 0:01:39.5]} 20... Nb6 {[%clk 0:01:06.2]} 21.
Qxe7 {[%clk 0:01:36.7]} 21... d5 {[%clk 0:00:55.2]} 22. Be5 {[%clk 0:01:27.6]}
22... Rfe8 {[%clk 0:00:53.3]} 23. Qh4 {[%clk 0:01:27]} 23... Bxe5 {[%clk
0:00:47.5]} 24. Nxe5 {[%clk 0:01:27.9]} 24... Nc4 {[%clk 0:00:37.1]} 25. Ndxc4
{[%clk 0:01:21.5]} 25... dxc4 {[%clk 0:00:36.1]} 26. Ng4 {[%clk 0:01:19.9]}
26... Nd5 {[%clk 0:00:19.3]} 27. e4 {[%clk 0:01:16.3]} 27... h5 {[%clk
0:00:11.2]} 28. Ne5 {[%clk 0:00:50.9]} 28... Nc3 {[%clk 0:00:08.7]} 29. Ra7
{[%clk 0:00:42.3]} 29... Rxe5 {[%clk 0:00:08.1]} 30. dxe5 {[%clk 0:00:40.4]}
30... Qxe5 {[%clk 0:00:08.7]} 31. f3 {[%clk 0:00:36.5]} 31... Ne2+ {[%clk
0:00:06.6]} 32. Kf2 {[%clk 0:00:33.6]} 32... Qd4+ {[%clk 0:00:06.3]} 33. Kxe2
{[%clk 0:00:31.8]} 33... Qxa7 {[%clk 0:00:07.2]} 34. Qf6 {[%clk 0:00:29.5]}
34... c3 {[%clk 0:00:06.9]} 35. Rc1 {[%clk 0:00:28.8]} 35... Qa2+ {[%clk
0:00:05.9]} 36. Kf1 {[%clk 0:00:26.1]} 36... Qd2 {[%clk 0:00:05.9]} 37. Re1
{[%clk 0:00:13.5]} 37... c2 {[%clk 0:00:05.9]} 38. e5 {[%clk 0:00:13.1]} 38...
c1=Q {[%clk 0:00:05.1]} 0-1

[Event "*** Titled Tuesday Blitz"]
[Site "Chess.com"]
[Date "2021.02.09"]
[Round "11"]
[White "Anna_ChessMate"]
[Black "SaraciNderim"]
[Result "0-1"]
[WhiteElo "2570"]
[BlackElo "2777"]
[TimeControl "180+1"]
[EndTime "12:07:52 PST"]
[Termination "SaraciNderim won by resignation"]

1. d4 {[%clk 0:03:00.7]} 1... d5 {[%clk 0:02:59.1]} 2. c4 {[%clk 0:02:54.7]}
2... c6 {[%clk 0:02:58.5]} 3. Nc3 {[%clk 0:02:45.1]} 3... Nf6 {[%clk 0:02:58.3]}
4. Nf3 {[%clk 0:02:45]} 4... dxc4 {[%clk 0:02:57.9]} 5. a4 {[%clk 0:02:45.6]}
5... Bf5 {[%clk 0:02:57.2]} 6. Ne5 {[%clk 0:02:46]} 6... e6 {[%clk 0:02:57.1]}
7. f3 {[%clk 0:02:41]} 7... Bb4 {[%clk 0:02:56.2]} 8. e4 {[%clk 0:02:40.1]} 8...
Nxe4 {[%clk 0:02:51.7]} 9. fxe4 {[%clk 0:02:41]} 9... Qh4+ {[%clk 0:02:51.2]}
10. Kd2 {[%clk 0:02:19.8]} 10... Qf2+ {[%clk 0:02:32.8]} 11. Qe2 {[%clk
0:01:58.4]} 11... Qxd4+ {[%clk 0:02:27.4]} 12. Kc2 {[%clk 0:01:58.8]} 12... Qxe5
{[%clk 0:02:21.9]} 13. exf5 {[%clk 0:01:51.1]} 13... Qxf5+ {[%clk 0:02:21.2]}
14. Qe4 {[%clk 0:01:49.3]} 14... Qf2+ {[%clk 0:01:47.3]} 15. Kb1 {[%clk
0:01:47.9]} 15... Nd7 {[%clk 0:01:24.1]} 16. Be3 {[%clk 0:01:45.3]} 16... Qf6
{[%clk 0:01:06.2]} 17. Qxc4 {[%clk 0:01:44.9]} 17... a5 {[%clk 0:01:02]} 18. Bd4
{[%clk 0:01:34.2]} 18... e5 {[%clk 0:00:47.9]} 19. Be3 {[%clk 0:01:23.1]} 19...
O-O {[%clk 0:00:44]} 20. Ne4 {[%clk 0:01:16]} 20... Qe7 {[%clk 0:00:33.6]} 21.
Bg5 {[%clk 0:01:11.6]} 21... Qe8 {[%clk 0:00:27.9]} 22. Bd3 {[%clk 0:01:02.6]}
22... Kh8 {[%clk 0:00:27.3]} 23. Ng3 {[%clk 0:00:32.6]} 23... f5 {[%clk
0:00:19.7]} 24. Bxf5 {[%clk 0:00:29.5]} 24... Rxf5 {[%clk 0:00:19.1]} 25. Nxf5
{[%clk 0:00:29.4]} 25... Qg6 {[%clk 0:00:19.3]} 26. Qg4 {[%clk 0:00:24.3]} 26...
Nf6 {[%clk 0:00:18.4]} 27. Bxf6 {[%clk 0:00:13.9]} 27... Qxg4 {[%clk 0:00:17.5]}
28. Bxg7+ {[%clk 0:00:14.5]} 28... Qxg7 {[%clk 0:00:15.1]} 29. Nxg7 {[%clk
0:00:15.4]} 29... Kxg7 {[%clk 0:00:16]} 30. Kc2 {[%clk 0:00:16]} 30... e4 {[%clk
0:00:15.1]} 31. Rad1 {[%clk 0:00:14]} 31... Re8 {[%clk 0:00:10.9]} 32. Rd7+
{[%clk 0:00:14.1]} 32... Kg6 {[%clk 0:00:11.4]} 33. Kd1 {[%clk 0:00:14.6]} 33...
e3 {[%clk 0:00:09.6]} 34. Ke2 {[%clk 0:00:15.3]} 34... b6 {[%clk 0:00:10.1]} 35.
Rf1 {[%clk 0:00:14.4]} 35... Bc5 {[%clk 0:00:10.4]} 36. g4 {[%clk 0:00:14.3]}
36... Re4 {[%clk 0:00:10.5]} 37. h3 {[%clk 0:00:14.1]} 37... Rb4 {[%clk
0:00:09.6]} 38. Rf5 {[%clk 0:00:10.4]} 38... Rxb2+ {[%clk 0:00:09.6]} 39. Ke1
{[%clk 0:00:08.3]} 39... Bb4+ {[%clk 0:00:09.4]} 0-1